Cogmind - Beta 13 @@@ ROGUE MODE // 2024.05.27 @ 11:19:50 Player: Bace Troncons Result: Destroyed by OI-O51(R) with Subdweller Laser Performance ------------- Evolutions (0) 0 Regions Visited (2) 400 Robots Destroyed (28) 140 Value Destroyed (675) 675 Prototype IDs (10) 200 Alien Tech Used (0) 0 Bonus (0) 0 TOTAL SCORE: 1415 Bonus ------- None Cogmind --------- Core Integrity 0/250 Matter 300/300 Energy 100/100 System Corruption 0% Temperature Cool (6) Movement Core (100) Ox1 Location -10/Subcaves Parts ------- > --- POWER (1) -------- (None) > --- PROPULSION (2) --- (None) > --- UTILITY (2) ------ (None) > --- WEAPON (2) ------- Mace Mace > --- INVENTORY (5) ---- Flightbrick Makeshift Hacking Suite Peak State ------------ > --- POWER ------------ Ion Engine > --- PROPULSION ------- Makeshift Leg Makeshift Leg > --- UTILITY ---------- Scrap Shield > --- WEAPON ----------- Mace Mace > --- INVENTORY -------- Flightbrick Makeshift Hacking Suite [Rating: 21] Favorites ----------- Power Light Ion Engine Engine Light Ion Engine Propulsion Light Treads Treads Light Treads Leg Makeshift Leg Wheel Subdweller Monowheel Utility Large Storage Unit Storage Large Storage Unit Protection Hardened Light Armor Plating Weapon Mace Energy Gun EM Pulse Gun Impact Weapon Mace Build | -11 -10 -10 ------- Run | Yrd Mat Sub Slots Evolved . | . . . Power . | . . . Propulsion . | . . . Utility . | . . . Weapon . | . . . Parts Attached 20 | 6 8 6 Power 3 | 1 1 1 Engine 3 | 1 1 1 Core . | . . . Reactor . | . . . Propulsion 7 | 2 1 4 Treads 3 | 2 1 . Leg 2 | . . 2 Wheel 2 | . . 2 Hover . | . . . Flight . | . . . Utility 5 | 1 3 1 Device . | . . . Storage 2 | 1 1 . Processor . | . . . Hackware . | . . . Protection 3 | . 2 1 Artifact . | . . . Weapon 5 | 2 3 . Energy Gun 3 | 2 1 . Energy Cannon . | . . . Ballistic Gun . | . . . Ballistic Cannon . | . . . Launcher . | . . . Special Weapon . | . . . Impact Weapon 2 | . 2 . Slashing Weapon . | . . . Piercing Weapon . | . . . Special Melee Weapon . | . . . Unidentified Prototypes . | . . . Parts Lost 7 | . . 7 Power 2 | . . 2 Propulsion 4 | . . 4 Utility 1 | . . 1 Weapon . | . . . Highest Loss Streak 4 | . . 4 To Critical Strikes . | . . . Average Slot Usage (%) 87 | . 96 79 Engine 13 | . 14 12 Treads 14 | . 28 4 Leg 5 | . . 10 Storage 10 | . 14 7 Protection 12 | . 11 13 Impact Weapon 27 | . 27 28 Naked Turns . | . . . Heaviest Build 34 | 11 32 34 Greatest Support 40 | 40 40 40 Greatest Overweight (x) 11 | 3 . 11 Average Overweight (x) . | 1 . 1 Largest Inventory Capacity 15 | 8 15 15 Average Capacity 12 | 7 14 10 Most Carried 11 | 2 11 11 Average Carried 8 | 1 8 8 Final Capacity 15 | 8 15 5 Final Carried 11 | 2 11 5 Class Distribution -------------------- 100% | Mutant Dominant Class ---------------- Mutant | -10/Materials Mutant | -10/Subcaves Resources | -11 -10 -10 ----------- Run | Yrd Mat Sub Matter Collected 399 | 230 100 69 Remotely . | . . . Salvage Created 831 | . 664 167 Parts 33 | . 27 6 Haulers Intercepted 2 | . 2 . Recyclers Shooed . | . . . Parts Field Recycled . | . . . Retrieved Matter . | . . . Parts Self-Destructed 4 | . . 4 Prevented 1 | . . 1 Kills | -11 -10 -10 ------- Run | Yrd Mat Sub Combat Hostiles Destroyed 17 | . 12 5 Melee 11 | . 8 3 Classes Destroyed 9 | . 8 1 Worker 1 | . 1 . Builder 1 | . 1 . Hauler 2 | . 2 . Recycler 1 | . 1 . Operator 3 | . 3 . Watcher 3 | . 3 . Swarmer 3 | . 3 . Grunt 11 | . 9 2 Subdweller 3 | . . 3 Best Kill Streak 8 | . 8 2 Combat Bots Only 6 | . 6 2 Max Kills in Single Turn 1 | . 1 1 Gunslinging . | . . . Exploded . | . . . Melee 1 | . 1 1 Uniques/NPCs Destroyed . | . . . Combat | -11 -10 -10 -------- Run | Yrd Mat Sub Hostile Shots Fired 121 | . 56 65 Missed 40 | . 16 24 Damage Taken 1236 | . 451 785 Core 257 | . 106 151 Absorbed by Shields . | . . . Redirected to Shielding 39 | . 39 . Core Remaining (%) 100 | 100 . . Volleys Fired . | . . . Largest . | . . . Hottest . | . . . Shots Fired . | . . . Gun . | . . . Cannon . | . . . Launcher . | . . . Special . | . . . Kinetic . | . . . Thermal . | . . . Explosive . | . . . Electromagnetic . | . . . Robot Hit Streak . | . . . Robot Miss Streak . | . . . Penetration Max . | . . . Secondary Targets . | . . . Shots Hit Robots 72 | . 44 28 Core Hits 11 | . 7 4 Critical Kills . | . . . Critical Parts Destroyed 12 | . 8 4 Critical Strikes 13 | . 8 5 Smash 13 | . 8 5 Melee Attacks 151 | . 78 73 Impact 151 | . 78 73 Slashing . | . . . Piercing . | . . . Sneak Attacks 9 | . 9 . Combat Hostiles . | . . . Follow-up Attacks 10 | . 6 4 Damage Inflicted 2560 | . 1748 812 Guns . | . . . Cannons . | . . . Explosions . | . . . Melee 2560 | . 1748 812 Ramming . | . . . Kinetic . | . . . Thermal . | . . . Explosive . | . . . Electromagnetic . | . . . Impact 2560 | . 1748 812 Slashing . | . . . Piercing . | . . . Highest Corruption . | . . . Average Corruption . | . . . Corruption Purged . | . . . Corruption Blocked . | . . . Overload Shots . | . . . Overflow Damage 699 | . 549 150 Projectiles . | . . . Explosions . | . . . Melee 699 | . 549 150 Knockbacks 18 | . 12 6 Impact 16 | . 10 6 Kinetic . | . . . Secondary 2 | . 2 . Self-Inflicted Damage . | . . . Shots . | . . . Rammed . | . . . Targets Rammed . | . . . Kicked . | . . . Crushed . | . . . Highest Temperature . | . . . Average Temperature . | . . . Received Heat Transfer 342 | . 195 147 Siege Activations . | . . . Robots Corrupted . | . . . Combat Hostiles . | . . . Parts Fried 23 | . 21 2 Impact Corruptions 28 | . 22 6 Robots Melted . | . . . Combat Hostiles . | . . . Parts Melted . | . . . Heat Transferred . | . . . Parts Sabotaged . | . . . Parts Stolen . | . . . Parts Stripped . | . . . Power Chain Reactions . | . . . Alert | -11 -10 -10 ------- Run | Yrd Mat Sub Peak Influence 288 | . 288 . Initial . | . . . Average 79 | . 83 . Maximum Alert Level 1 | . 1 . Low Security (%) 90 | 100 89 . Level 1 9 | . 10 . Level 2 . | . . . Level 3 . | . . . Level 4 . | . . . Level 5 . | . . . High Security . | . . . Max Security . | . . . Squads Dispatched 4 | . 4 . Investigation . | . . . Extermination . | . . . Reinforcement 4 | . 4 . Assault . | . . . Garrison . | . . . Intercept . | . . . Searches Triggered . | . . . Construction Impeded . | . . . Haulers Reinforced . | . . . Active Scanning Responses . | . . . Cargo Convoy Interrupts . | . . . Stealth | -11 -10 -10 --------- Run | Yrd Mat Sub Distress Signals 3 | . 3 . Communications Jammed . | . . . Distress Signals . | . . . Times Spotted 30 | . 23 7 Peak Tracking Total 4 | . 4 3 Tactical Retreats 1 | . 1 . Traps | -11 -10 -10 ------- Run | Yrd Mat Sub Traps Triggered . | . . . Indirectly . | . . . Trap Hack Attempts . | . . . Triggered . | . . . Disarmed . | . . . Reprogrammed . | . . . Reused . | . . . Traps Extracted . | . . . Installed . | . . . Triggered . | . . . Machines | -11 -10 -10 ---------- Run | Yrd Mat Sub Machines Disabled 1 | . . 1 Max in Single Turn 1 | . . 1 Machines Repaired . | . . . Machines Dismantled . | . . . Machines Sabotaged . | . . . Overloaded Fab Kills . | . . . Hacking | -11 -10 -10 --------- Run | Yrd Mat Sub Machines Accessed 4 | . 3 1 Terminals 3 | . 3 . Fabricators . | . . . Repair Stations . | . . . Recycling Units . | . . . Scanalyzers . | . . . Garrison Access . | . . . Total Hacks 6 | . 5 1 Successful 4 | . 3 1 Failed 2 | . 2 . Catastrophic . | . . . Database Lockouts . | . . . Manual 3 | . 3 . Terminals 5 | . 5 . Fabricators . | . . . Repair Stations . | . . . Recycling Units . | . . . Scanalyzers . | . . . Garrison Access . | . . . Terminal Hacks 4 | . 3 1 Maintenance Status 1 | . 1 . Recall Reinforcements 1 | . 1 . Zone Layout 1 | . 1 . Derelict Proto ID Bank 1 | . . 1 Fabricator Hacks . | . . . Repair Station Hacks . | . . . Recycling Unit Hacks . | . . . Scanalyzer . | . . . Garrison Access Hacks . | . . . Unauthorized Hacks . | . . . Terminals . | . . . Fabricators . | . . . Repair Stations . | . . . Recycling Units . | . . . Scanalyzers . | . . . Garrison Access . | . . . Data Cores Recovered . | . . . Used . | . . . Hacking Detections 3 | . 3 . Full Trace Events . | . . . Feedback Events . | . . . Feedback Blocked . | . . . Robot Schematics Acquired . | . . . Robots Built . | . . . Authchips . | . . . Time . | . . . Total Robot Build Rating . | . . . Part Schematics Acquired . | . . . Parts Built . | . . . Authchips . | . . . Time . | . . . Total Part Build Rating . | . . . Parts Repaired . | . . . Time . | . . . Parts Recycled . | . . . Recycled Matter . | . . . Retrieved Matter . | . . . Retrieved Components . | . . . Parts Scanalyzed . | . . . Part Schematics Acquired . | . . . Parts Damaged . | . . . Bothacking | -11 -10 -10 ------------ Run | Yrd Mat Sub Used RIF Installer . | . . . Robots Hacked . | . . . Non-combat . | . . . Combat . | . . . Robot Hacks Applied . | . . . Relay Couplers Released . | . . . Fabnet Peak Effective % . | . . . Robots Rewired . | . . . Allies Hacked . | . . . Hacks Repelled . | . . . Allies | -11 -10 -10 -------- Run | Yrd Mat Sub Total Allies . | . . . Largest Group . | . . . Highest-Rated Group . | . . . Highest-Rated Ally . | . . . Total Orders . | . . . Ally Attacks . | . . . Total Damage . | . . . Kills . | . . . Allies Corrupted . | . . . Allies Melted . | . . . Intel | -11 -10 -10 ------- Run | Yrd Mat Sub Robot Analysis Total . | . . . Derelict Logs Recovered 1 | . . 1 Drone Launches . | . . . Drone Recoveries . | . . . Exploration | -11 -10 -10 ------------- Run | Yrd Mat Sub Turns Passed 3590 | 61 1540 1989 Spaces Moved 1463 | 32 558 873 Core 135 | 16 . 119 Treads 733 | 16 558 159 Legs 483 | . . 483 Wheels 112 | . . 112 Hover . | . . . Flight . | . . . Fastest Speed 50 | 50 160 120 Average Speed 184 | 159 160 201 Slowest Speed 600 | 200 160 600 Overloaded Moves . | . . . Propulsion Burnouts . | . . . Robots Hopped . | . . . Cave-ins Triggered . | . . . Exploration Rate (%) 48 | 3 86 56 Regions Visited 2 Branch Regions 1 Pre-discovered Areas . | . . . Known Exits Taken . | . . . Unknown Exits Taken 2 | 1 1 . Scrap Searched 9 | . . 9 Spaces Dug 15 | . 8 7 Terrain Destroyed 15 | . 8 7 Melee 15 | . 8 7 Projectile . | . . . AOE . | . . . Terrain Rammed . | . . . Walls Destroyed . | . . . Machines Disabled . | . . . Actions | -11 -10 -10 --------- Run | Yrd Mat Sub Total 2122 | 39 1093 990 Wait 466 | . 432 34 Move 1461 | 31 557 873 Hop . | . . . Pick Up 21 | 2 15 4 Fast Attach 17 | 6 6 5 Attach 1 | . . 1 Detach 6 | . 5 1 Swap 2 | . 2 . Drop 22 | . 12 10 Fire . | . . . Melee 126 | . 64 62 Ram . | . . . Kick . | . . . Crush . | . . . Escape Stasis . | . . . Rewire . | . . . Trap . | . . . Miscellaneous . | . . . Route ------- -11/Scrapyard -10/Materials (discovered 4 exits: [*Mat x2] / [*Min] / *Sub) -10/Subcaves (discovered 1 exit: [*Mat]) History --------- Turn | Location | Event 30 | -11/Scrapyard | Discovered new exit (range 14) 62 | -11/Scrapyard | Entered Materials 312 | -10/Materials | Build established: Mutant 584 | -10/Materials | Discovered new exit (range 13) 773 | -10/Materials | Discovered new exit (range 10) 963 | -10/Materials | Discovered new exit (range 3) 1572 | -10/Materials | Discovered new exit (range 5) 1602 | -10/Materials | Entered Subcaves 1728 | -10/Subcaves | A swath of the cavern ceiling suddenly collapsed 1797 | -10/Subcaves | Shifting Twisted Machinery released Sub. Beam Cannon 1814 | -10/Subcaves | Shifting Twisted Machinery released Sub. Beam Cannon 1862 | -10/Subcaves | Learned 2 Materials zone layouts 1907 | -10/Subcaves | Core integrity fell below 50% 2190 | -10/Subcaves | Discovered new exit (range 10) 2987 | -10/Subcaves | Shifting Twisted Machinery released Mak. Hacking Suite 3036 | -10/Subcaves | Shifting Twisted Machinery released Sub. Machine Gun 3267 | -10/Subcaves | Visited 4L-MR0's lab 3286 | -10/Subcaves | Found Flightbrick 3581 | -10/Subcaves | Core integrity fell below 20% 3591 | -10/Subcaves | Destroyed by OI-O51(R) with Subdweller Laser Last Messages --------------- 03319_ Found Battle Rifle. 03319_ Found 21 Matter. 03514_ LY-LUM(R) knocked back. 03522_ Critical hit (Destroy). 03522_ Destroyed Sub. Power Source. 03522_ LY-LUM(R) system corrupted by crushing effect. 03529_ LY-LUM(R) knocked back. 03534_ Critical hit (Destroy). 03536_ Mak. Leg destroyed. 03538_ LY-LUM(R) knocked back. 03542_ Scrap Shield destroyed. 03549_ LY-LUM(R) destroyed. 03569_ OI-O51(R) suffers critical hit (Smash). 03569_ OI-O51(R) knocked back. 03571_ Ion Engine destroyed. 03579_ OI-O51(R) affixes Scrap Shield Fragment to Scrap Shield. 03583_ Mace follow-up attack on OI-O51(R). 03588_ Mak. Leg destroyed. Map ----- +----------------------------------------------------+ | ?????????????#### ###????## | | ?????????????# #????# | | ?????????????# #???## | | ??????????????# #???# ## | | ??????????????# ##??## ## ### ## #? # | | ??????????????? ##??######?## #?##? ## | | ??????????????????# ####?## #### #??????? | | ???????????????????# ### ## #??????? | | ???????????????????# ### ## #??????? | | ?????????????????# #?# ### ##?????? | | ????????????????# ?##" #### ##???## | | ???????????????# # #??## ##### #### | | ???????????????# # ???## ## ## | | ???????????????# #????# | | ???????????????# ? ???## | | ???????????????#? ??## ## | | ????????????????# ??# ## ##### | | ????????????????# ??# #### ##?? | | ????????????????# # ### #??#### ##? | | ?????????????????## ###"" #?????### ## | | ?????????????????? ??#" ##???????# | | ?????????????# ??# ?## #????????# | | ?????????????# #" ## #####????????# | | ?????????????# " ##???????????## # | | ????????????# # ##?####??????# # | | ????????????# ??# @! ### ##?????# | | ??????????????????# %[ ##????# # | | ??????????????????## R## ###?## # | | ???????????????????### #### ### # | | ?????????????????????## ???## # | | ??????????????????????###????## ### ## | | ??????????????????????????????## ##?###? | | ??????????????????????????????## ##?????? | | ??????????????????????????????# ### ##??????? | | ??????????????????????????????# ##?# ##???????? | | ??????????????????????????????#####??####????????? | | ?????????????????????????????????????????????????? | | ?????????????????????????????????????????????????? | | ?????????????????????????????????????????????????? | | ?????????????????????????????????????????????????? | | ?????????????????????????????????????????????????? | | ?????????????????????????????????????????????????? | | ?????????????????????????????????????????????????? | | ?????????????????????????????????????????????????? | | ?????????????????????????????????????????????????? | | ?????????????????????????????????????????????????? | | ?????????????????????????????????????????????????? | | ?????????????????????????????????????????????????? | | ?????????????????????????????????????????????????? | | ?????????????????????????????????????????????????? | +----------------------------------------------------+ Best States ------------- Heat Dissipation 25 Energy Generation 10 Energy Capacity 250 Matter Stores 300 Matter Capacity 300 Sight Range 16 Terrain Scan Density 10 Armor Coverage 800 Propulsion Shielding 33 Evasion (%) 55 Recoil Reduction 2 Item Schematics ----------------- None Robot Schematics ------------------ None Fabricated ------------ Nothing Alien Tech Used ----------------- None Achievements -------------- None Challenges ------------ None Game ------ Seed GreatCloakingKinecellerator Manual? 0 Play Time 00:19:52 Cumulative 87.4 hours Start 2024.05.27 @ 11:01:18 End 2024.05.27 @ 11:19:50 Sessions 1 Manual Loads 0 Difficulty Rogue Special Mode None Game No. 144 Rogue 144 Adventurer 0 Explorer 0 Win Type - Total 1 Types 1/0/0/0/0/0/0/0/0 Lore% 40 Gallery% 44 Achievement% 32 Wizard Run 0 Options --------- Layout 1 ASCII 0 Keyboard 1 Movement Numpad Keybinds 0 Fullscreen 1 Font 24/Smallcaps Map View 50x35 Zoom Use 0% Tactical HUD 1 Map Filters NONE Filters NONE Steam 1 RUN: 5eb1a9d3-46d6-4b34-821c-517a9a121558